Cogmind - Beta 17 @@@ ROGUE MODE // 2026.07.22 @ 18:47:22 Player: epicnox Result: Destroyed self with Rocket Launcher Performance ------------- Evolutions (0) 0 Regions Visited (2) 400 Robots Destroyed (18) 90 Value Destroyed (494) 494 Prototype IDs (2) 40 Alien Tech Used (0) 0 Bonus (0) 0 TOTAL SCORE: 1024 Bonus ------- None Cogmind --------- Core Integrity 0/250 Matter 235/300 Energy 99/100 System Corruption 0% Temperature Cool (0) Movement Core (1500) Ox29 Location -10/Subcaves Parts ------- > --- POWER (1) -------- (None) > --- PROPULSION (2) --- (None) > --- UTILITY (2) ------ Huge Storage Unit Improved Terrain Scanner > --- WEAPON (2) ------- Subdweller Machine Gun Rocket Launcher > --- INVENTORY (25) --- Subdweller Power Source Heat Sink Improved Heat Sink Huge Storage Unit High-capacity Matter Pod (200) Subdweller Optics Seismic Detector Targeting Computer Targeting Computer Core Shielding Core Shielding Light Armor Plating Tractor Beam EM Shotgun EM Shotgun EM Shotgun EM Shotgun Beam Rifle Beam Rifle Beam Rifle Subdweller Laser Battle Cannon Rocket Launcher Rocket Launcher Peak State ------------ > --- POWER ------------ Ion Engine > --- PROPULSION ------- Light Treads Light Treads > --- UTILITY ---------- Huge Storage Unit Improved Terrain Scanner > --- WEAPON ----------- Beam Rifle Beam Rifle > --- INVENTORY -------- Light Ion Engine Heat Sink Improved Heat Sink Huge Storage Unit High-capacity Matter Pod Seismic Detector Targeting Computer Targeting Computer Core Shielding Core Shielding Light Armor Plating Tractor Beam EM Shotgun EM Shotgun EM Shotgun EM Shotgun Beam Rifle Beam Rifle Rocket Launcher Rocket Launcher Rocket Launcher Rocket Launcher [Rating: 14] Favorites ----------- Power Ion Engine Engine Ion Engine Propulsion Light Treads Treads Light Treads Utility Improved Terrain Scanner Device Improved Terrain Scanner Storage Huge Storage Unit Weapon Beam Rifle Energy Gun Beam Rifle Ballistic Gun Light Assault Rifle Launcher Rocket Launcher Build | -11 -10 -10 ------- Run | Yrd Mat Sub Slots Evolved . | . . . Power . | . . . Propulsion . | . . . Utility . | . . . Weapon . | . . . Parts Attached 23 | 6 11 6 Power 5 | 1 3 1 Engine 5 | 1 3 1 Core . | . . . Reactor . | . . . Propulsion 3 | 2 1 . Treads 3 | 2 1 . Leg . | . . . Wheel . | . . . Hover . | . . . Flight . | . . . Utility 4 | 1 3 . Device 1 | . 1 . Storage 3 | 1 2 . Processor . | . . . Hackware . | . . . Protection . | . . . Artifact . | . . . Weapon 11 | 2 4 5 Energy Gun 6 | 2 3 1 Energy Cannon . | . . . Ballistic Gun 2 | . 1 1 Ballistic Cannon . | . . . Launcher 3 | . . 3 Special Weapon . | . . . Impact Weapon . | . . . Slashing Weapon . | . . . Piercing Weapon . | . . . Special Melee Weapon . | . . . Unidentified Prototypes . | . . . Parts Lost 11 | . 5 6 Power 4 | . 2 2 Propulsion 3 | . 1 2 Utility . | . . . Weapon 4 | . 2 2 Highest Loss Streak 3 | . 3 3 To Critical Strikes 1 | . 1 . Average Backups 16 | 2 11 23 Power . | . . 1 Propulsion . | . . . Utility 9 | . 8 11 Weapon 5 | 1 2 11 Tool/Special . | . . . Unused Backups 22 | . 1 21 Power 1 | . . 1 Propulsion . | . . . Utility 13 | . 1 12 Weapon 8 | . . 8 Tool/Special . | . . . Average Slot Usage (%) 88 | . 94 79 Engine 11 | . 13 9 Treads 20 | . 26 13 Device 13 | . 13 14 Storage 14 | . 14 14 Energy Gun 18 | . 17 20 Ballistic Gun 6 | . 8 3 Launcher 1 | . . 3 Peak Build Rating 14 | 6 14 14 Average Rating 10 | 4 9 13 On Entrance 6 | . 6 14 Avg Prop Armor Cover (%) . | . . . Naked Turns . | . . . Heaviest Build 92 | 10 92 92 Greatest Support 40 | 40 40 40 Greatest Overweight (x) 30 | . 4 30 Average Overweight (x) 2 | . 1 5 Largest Inventory Capacity 25 | 8 25 25 Average Capacity 22 | 7 21 25 Most Carried 25 | 6 24 25 Average Carried 16 | 2 11 23 Final Capacity 25 | 8 25 25 Final Carried 24 | 6 22 24 Class Distribution -------------------- 100% | Mutant Dominant Class ---------------- Mutant | -10/Materials Mutant | -10/Subcaves Resources | -11 -10 -10 ----------- Run | Yrd Mat Sub Matter Collected 615 | 260 332 23 Remotely . | . . . Salvage Created 724 | 78 475 171 Parts 42 | 7 24 11 Haulers Intercepted . | . . . Recyclers Shooed 1 | 1 . . Parts Field Recycled . | . . . Retrieved Matter . | . . . Parts Self-Destructed . | . . . Prevented . | . . . Parts Restored . | . . . Kills | -11 -10 -10 ------- Run | Yrd Mat Sub Combat Hostiles Destroyed 15 | . 11 4 Guns 14 | . 11 3 AOE 1 | . . 1 Classes Destroyed 5 | 2 2 1 Tunneler 1 | 1 . . Recycler 2 | 1 1 . Swarmer 3 | . 3 . Grunt 8 | . 8 . Subdweller 4 | . . 4 Best Kill Streak 3 | 2 3 1 Combat Bots Only 3 | . 3 1 Max Kills in Single Turn 1 | 1 1 1 Gunslinging . | . . . Exploded 1 | . . 1 Melee . | . . . Uniques/NPCs Destroyed . | . . . Combat | -11 -10 -10 -------- Run | Yrd Mat Sub Hostile Shots Fired 130 | . 82 48 Missed 33 | . 19 14 Hits 97 | . 63 34 Projectile 97 | . 63 34 Critical Strikes 2 | . 2 . Damage Taken 1494 | . 715 779 Core 254 | . 117 137 Absorbed by Shields . | . . . Regen/Repaired (Parts) 111 | . 111 . Core Remaining (%) 100 | 100 . . Volleys Fired 78 | 8 51 19 Largest 2 | 2 2 2 Hottest 112 | 80 80 112 Shots Fired 137 | 16 83 38 Gun 133 | 16 83 34 Cannon . | . . . Launcher 4 | . . 4 Special . | . . . Kinetic 29 | . 27 2 Thermal 104 | 16 56 32 Explosive 4 | . . 4 Electromagnetic . | . . . Robot Hit Streak 16 | 4 16 16 Robot Miss Streak 4 | 4 3 2 Penetration Max . | . . . Secondary Targets 2 | . 1 1 Max Gunslinging Chain 1 | . 1 1 Shots Hit Robots 98 | 8 60 30 Core Hits 32 | 3 23 6 Critical Kills . | . . . Critical Parts Destroyed 1 | . 1 . Critical Strikes 1 | . 1 . Destroy 1 | . 1 . Melee Attacks . | . . . Impact . | . . . Slashing . | . . . Piercing . | . . . Sneak Attacks . | . . . Combat Hostiles . | . . . Follow-up Attacks . | . . . Damage Inflicted 933 | 88 643 202 Guns 873 | 88 643 142 Cannons . | . . . Explosions 60 | . . 60 Melee . | . . . Ramming . | . . . Kinetic 197 | . 171 26 Thermal 676 | 88 472 116 Explosive 60 | . . 60 Electromagnetic . | . . . Impact . | . . . Slashing . | . . . Piercing . | . . . Highest Corruption . | . . . Average Corruption . | . . . Corruption Purged . | . . . Corruption Blocked . | . . . Overload Shots . | . . . Overflow Damage . | . . . Projectiles . | . . . Explosions . | . . . Melee . | . . . Knockbacks . | . . . Impact . | . . . Kinetic . | . . . Secondary . | . . . Self-Inflicted Damage 31 | . . 31 Shots 1 | . . 1 Rammed . | . . . Targets Rammed . | . . . Kicked . | . . . Crushed . | . . . Highest Temperature 345 | 72 345 3 Average Temperature 91 | 29 108 3 Received Heat Transfer 579 | . 369 210 Effects 5 | . 5 . Interference 4 | . 4 . Damage (minor) 1 | . 1 . Siege Activations . | . . . Martial Activations . | . . . Shielding Activations . | . . . Robots Disrupted . | . . . Combat Hostiles . | . . . Robots Corrupted . | . . . Combat Hostiles . | . . . Parts Fried . | . . . Impact Corruptions . | . . . Robots Melted . | . . . Combat Hostiles . | . . . Parts Melted 1 | . . 1 Heat Transferred 1521 | 200 1025 296 Parts Sabotaged . | . . . Parts Stolen . | . . . Parts Stripped . | . . . Power Chain Reactions . | . . . Alert | -11 -10 -10 ------- Run | Yrd Mat Sub Maximum Alert Level . | . . . Low Security (%) 100 | 100 100 . Level 1 . | . . . Level 2 . | . . . Level 3 . | . . . Level 4 . | . . . Level 5 . | . . . High Security . | . . . Max Security . | . . . Peak Influence 70 | 10 70 . Initial . | . . . Average 11 | . 12 . Influence Increases 351 | 10 341 . Destroy 0b10 Robot/C 220 | . 220 . Destroy 0b10 Robot/NC 15 | 10 5 . Destroy Leader 50 | . 50 . Successful Hack 6 | . 6 . Lose Combat Pursuer 60 | . 60 . Influence Decreases 351 | 10 341 . Time Decay 311 | 10 301 . Lost Part 40 | . 40 . Squads Dispatched 3 | . 3 . Investigation 2 | . 2 . Extermination . | . . . Reinforcement 1 | . 1 . Assault . | . . . Garrison . | . . . Intercept . | . . . Searches Triggered . | . . . Construction Impeded . | . . . Haulers Reinforced . | . . . Active Scanning Responses . | . . . Cargo Convoy Interrupts . | . . . Stealth | -11 -10 -10 --------- Run | Yrd Mat Sub Distress Signals 2 | . 2 . Communications Jammed . | . . . Distress Signals . | . . . Times Spotted 24 | . 19 5 Peak Tracking Total 5 | . 5 2 Tactical Retreats 4 | . 4 . Traps | -11 -10 -10 ------- Run | Yrd Mat Sub Traps Triggered 1 | . 1 . Indirectly . | . . . Trap Hack Attempts . | . . . Triggered . | . . . Disarmed . | . . . Reprogrammed . | . . . Reused . | . . . Traps Extracted . | . . . Installed . | . . . Triggered . | . . . Machines | -11 -10 -10 ---------- Run | Yrd Mat Sub Machines Disabled . | . . . Max in Single Turn . | . . . Machines Repaired . | . . . Machines Dismantled . | . . . Machines Sabotaged . | . . . Overloaded Fab Kills . | . . . Hacking | -11 -10 -10 --------- Run | Yrd Mat Sub Machines Accessed 6 | . 6 . Terminals 4 | . 4 . Fabricators . | . . . Repair Stations 1 | . 1 . Recycling Units 1 | . 1 . Scanalyzers . | . . . Garrison Access . | . . . Total Hacks 15 | . 15 . Successful 5 | . 5 . Failed 10 | . 10 . Catastrophic 5 | . 5 . Database Lockouts . | . . . Manual 9 | . 9 . Terminals 10 | . 10 . Fabricators . | . . . Repair Stations 3 | . 3 . Recycling Units 2 | . 2 . Scanalyzers . | . . . Garrison Access . | . . . Terminal Hacks 3 | . 3 . Robot Analysis 2 | . 2 . Prototype ID Bank 1 | . 1 . Fabricator Hacks . | . . . Repair Station Hacks 2 | . 2 . Scan Component 1 | . 1 . Repair 1 | . 1 . Recycling Unit Hacks . | . . . Scanalyzer . | . . . Garrison Access Hacks . | . . . Unauthorized Hacks . | . . . Terminals . | . . . Fabricators . | . . . Repair Stations . | . . . Recycling Units . | . . . Scanalyzers . | . . . Garrison Access . | . . . Data Cores Recovered . | . . . Used . | . . . Hacking Detections 6 | . 6 . Full Trace Events 2 | . 2 . Feedback Events . | . . . Feedback Blocked . | . . . Robot Schematics Acquired . | . . . Robots Built . | . . . Authchips . | . . . Time . | . . . Total Robot Build Rating . | . . . Part Schematics Acquired . | . . . Parts Built . | . . . Authchips . | . . . Time . | . . . Total Part Build Rating . | . . . Part Studies Acquired . | . . . Parts Repaired 1 | . 1 . Time 26 | . 26 . Parts Recycled . | . . . Recycled Matter . | . . . Retrieved Matter . | . . . Retrieved Components . | . . . Parts Scanalyzed . | . . . Part Schematics Acquired . | . . . Parts Damaged . | . . . Bothacking | -11 -10 -10 ------------ Run | Yrd Mat Sub Used RIF Installer . | . . . Robots Hacked . | . . . Non-combat . | . . . Combat . | . . . Robot Hacks Applied . | . . . Relay Couplers Released . | . . . Fabnet Peak Effective % . | . . . Robots Rewired . | . . . Allies Hacked . | . . . Hacks Repelled . | . . . Allies | -11 -10 -10 -------- Run | Yrd Mat Sub Total Allies . | . . . Largest Group . | . . . Highest-Rated Group . | . . . Highest-Rated Ally . | . . . Total Orders . | . . . Ally Attacks . | . . . Total Damage . | . . . Kills . | . . . Allies Corrupted . | . . . Allies Melted . | . . . Intel | -11 -10 -10 ------- Run | Yrd Mat Sub Active Infowar (turns) 2340 | . 1338 1002 Terrain 2340 | . 1338 1002 Robot Analysis Total 2 | . 2 . Derelict Logs Recovered 1 | . . 1 Drone Launches . | . . . Drone Recoveries . | . . . Exploration | -11 -10 -10 ------------- Run | Yrd Mat Sub Turns Passed 2518 | 126 1390 1002 Spaces Moved 665 | 65 425 175 Core 34 | 17 . 17 Treads 631 | 48 425 158 Legs . | . . . Wheels . | . . . Hover . | . . . Flight . | . . . Fastest Speed 50 | 50 160 320 Average Speed 329 | 131 277 530 Slowest Speed 1550 | 160 480 1550 Overloaded Moves . | . . . Propulsion Burnouts . | . . . Robots Hopped . | . . . Potential Cave-ins . | . . . Cave-ins Triggered . | . . . Exploration Rate (%) 26 | 3 69 8 Regions Visited 2 Branch Regions 1 Pre-discovered Areas . | . . . Known Exits Taken . | . . . Unknown Exits Taken 2 | 1 1 . Scrap Searched . | . . . Spaces Dug . | . . . Terrain Destroyed 29 | . . 29 Melee . | . . . Projectile . | . . . AOE 29 | . . 29 Terrain Rammed . | . . . Walls Destroyed . | . . . Machines Disabled . | . . . Actions | -11 -10 -10 --------- Run | Yrd Mat Sub Total 862 | 90 561 211 Wait 44 | . 38 6 Move 663 | 64 424 175 Hop . | . . . Pick Up 46 | 12 29 5 Fast Attach . | . . . Attach 18 | 6 9 3 Detach . | . . . Swap 7 | . 4 3 Drop 6 | . 6 . Fire 78 | 8 51 19 Melee . | . . . Ram . | . . . Kick . | . . . Crush . | . . . Escape Stasis . | . . . Rewire . | . . . Trap . | . . . Miscellaneous . | . . . Route ------- -11/Scrapyard -10/Materials (discovered 3 exits: [*Mat] / [*Min] / [*Sub]) -10/Subcaves History --------- Turn | Location | Event 7 | -11/Scrapyard | Discovered new exit (range 15) 127 | -11/Scrapyard | Entered Materials 304 | -10/Materials | Build established: Mutant 360 | -10/Materials | Discovered new exit (range 16) 451 | -10/Materials | Lost 3 parts (1p1n1w) 682 | -10/Materials | Repaired Lgt. Treads 970 | -10/Materials | Discovered new exit (range 15) 1479 | -10/Materials | Discovered new exit (range 8) 1517 | -10/Materials | Entered Subcaves 1518 | -10/Subcaves | Approached by a straggling Scientist 1604 | -10/Subcaves | Learned 2 Materials zone layouts 1709 | -10/Subcaves | Core integrity fell below 50% 1764 | -10/Subcaves | Lost 3 parts (1p1n1w) 2354 | -10/Subcaves | Core integrity fell below 20% 2519 | -10/Subcaves | Destroyed self with Rocket Launcher Last Messages --------------- Subatomizers dissect the Sub. Monowheel. RW-SYI(O) puts together Sub. Optics. Acquired Battle Cannon. Subatomizers dissect the Lgt. Ion Engine. Subatomizers dissect the Lgt. Ion Engine, destroying it. Subatomizers dissect the Sub. Monowheel. Acquired 8 matter. Acquired 2 matter. Lgt. Treads destroyed. BS-061(R) destroyed. Subatomizers dissect the Sub. Machine Gun. Subatomizers dissect the Sub. Machine Gun, destroying it. The unstable cave ceiling collapses. Rocket Launcher destroyed. Lgt. Ion Engine destroyed. Sub. Monowheel melted. FY-VXE(R) destroyed. The unstable cave ceiling collapses. Acquired 6 matter. Acquired 7 matter. Map ----- +----------------------------------------------------+ | ?## ## #??#?????#???????????????????????? | | ?# #?#???#??????????????????????????? | | ## ##?#?????????????????????????????? | | # ! #?????#?????????????????????????? | | ## ## #???????????????????????????????? | | ## ## ########?????????????????????????? | | # ## ### ###???#????????????????????????????? | | #?# ## #?##??##??????????????????????????? | | ##?## # ##????#??#?#??##??#????????????????? | | # ####& ##??#?##??#?#?????????????????????? | | ###& """ ##??##???#??#?#????????????????????? | | #?#&"""& "# "########?####?#?####???????????????? | | ###""""= ##" " ## ### ### #??????????????? | | ?##"""" # # ## #??????????????? | | " "##" "" " ? ? ????????????? | | " "###" " #??? ?? ??????????????? | | " "#### " ####?##??? ??? ???????????? | | ""?########## ### ####???????????? ?????????? | | ???#?#?#??### ###?## # ##?#?#?#??? ???????????? | | ???##?############??## ####?##? ?????????????? | | ??#?### """##?# ## # # #??##"" ????????????? | | #???# # """#####;; # ####""??????????????? | | ?# ?#" "% "## # !! # """""?? ??????????? | | #???#" " """"" # ! ""#???????????????? | | #?#?##### "###"" ""#?# ??????????? | | ?##??#?## ###" % # @ " ##????? ?????????? | | ???????## ## #### "##???? ?????????? | | ???#??#?## ### ##% ""#?#"?????????????? | | ????????#### ## #### " ??????????????? | | ??? #?##???## % #??## """??#?????????? | | ????????##??## ## # ##?# " "?????????????? | | ????????????## #######???#" " #????????????? | | #???????###?# ###?#??###?# "" ###????????????? | | #????#???#?####??#???#???? ### ""#?#????????????? | | ?????????????##??#??##??#####?##" #??????????????? | | ????#????#????#???##??#?????????#????????????????? | | #?#??????????????????##????#?##?#??#?#???????????? | | ?????#??#????? #?#??# ????? ?????????????????????? | | ??? ??#??? ???##? ??? ? ???????????????????????? | | ??????????????##? ?????????? ?? ?????????????????? | | ??????#?????#???????????????? ???????????????????? | | ??????#?#????#?#?????????????????????????????????? | | ????????????#??????????????#?????????????????????? | | ?????????????? ??????????????????????????????????? | | ?????????????#???????????????????????????????????? | | ?????????????????????????????????????????????????? | | ?????????????????????????????????????????????????? | | ?????????????????????????????????????????????????? | | ?????????????????????????????????????????????????? | | ?????????????????????????????????????????????????? | +----------------------------------------------------+ Best States ------------- Heat Dissipation 25 Energy Generation 10 Energy Capacity 250 Matter Stores 300 Matter Capacity 300 Sight Range 16 Terrain Scan Range 16 Terrain Scan Density 10 Evasion (%) 50 Recoil Reduction 2 Item Schematics ----------------- None Robot Schematics ------------------ None Fabricated ------------ Nothing Repaired ---------- Lgt. Treads | 20% | -10/Materials Studied --------- None Alien Tech Used ----------------- None Achievements -------------- None Challenges ------------ None Game ------ Seed DroneTrapMaxwheels Manual? 0 Play Time 00:15:51 Cumulative 15.6 hours Start 2026.07.22 @ 18:31:08 End 2026.07.22 @ 18:47:22 Sessions 1 Manual Loads 0 Difficulty Rogue Special Mode None Game No. 28 Rogue 28 Adventurer 0 Explorer 0 Win Type - Total 0 Types 0/0/0/0/0/0/0/0/0/0 Lore% 8 Gallery% 13 Achievement% 14 Wizard Run 0 Options --------- Layout 0 ASCII 0 Keyboard 0 Movement Numpad Keybinds 0 Fullscreen 1 Font 18/SmallcapsGlow Map View 38x25 Zoom Use 100% Tactical HUD 0 Map Filters NONE Filters NONE Steam 1 RUN: 1d0785af-d2c8-43dd-afd7-18da3abbcab3